[Event "22nd Ruzomberok Open 2019"]
[Site "Ruzomberok"]
[Date "2019.07.03"]
[Round "5.20"]
[White "Koloditsova, Renata"]
[Black "Verba, Vladimir"]
[Result "1/2-1/2"]
[ECO "A61"]
[WhiteElo "1903"]
[BlackElo "1708"]
[Annotator "NA"]
[PlyCount "115"]
[EventDate "2019.06.29"]
[EventType "swiss"]
[EventCountry "SVK"]
[SourceTitle "playchess.com"]
[Source "ChessBase"]
[SourceQuality "1"]
[TimeControl "40/5400+30:1800+30"]

1. d4 {[%emt 0:00:00]} Nf6 {[%emt 0:00:01]} 2. c4 {[%emt 0:00:00]} c5 {[%emt 0:00:19]} 3. d5 {[%emt 0:00:00]} e6 {[%emt 0:00:34]} 4. Nc3 {[%emt 0:00:04]} exd5 {[%emt 0:00:20]} 5. cxd5 {[%emt 0:00:08]} d6 {[%emt 0:00:11]} 6. Nf3 {[%emt 0:00:14]} g6 {[%emt 0:00:08]} 7. Bf4 {[%emt 0:00:32]} Bg7 {[%emt 0:00:47]} 8. h3 {[%emt 0:00:20]} O-O {[%emt 0:04:30]} 9. e3 {[%emt 0:00:11]} a6 {[%emt 0:00:49]} 10. a4 {[%emt 0:01:07]} b6 {[%emt 0:05:19]} 11. Nd2 {[%emt 0:07:43]} Bb7 {[%emt 0:05:40]} 12. Nc4 {[%emt 0:02:01]} Ne8 {[%emt 0:05:07]} 13. Be2 {[%emt 0:11:32]} Qc7 {[%emt 0:01:46]} 14. O-O {[%emt 0:01:04]} Nd7 {[%emt 0:00:17]} 15. Qb3 {[%emt 0:12:46]} Rb8 {[%emt 0:15:46]} 16. Rfd1 {[%emt 0:02:51]} Bc8 {[%emt 0:12:53]} 17. Ne4 {[%emt 0:17:48]} Ne5 {[%emt 0:03:48]} 18. Nxe5 {[%emt 0:01:16]} dxe5 {[%emt 0:02:10]} 19. Bh2 {[%emt 0:08:45]} Nd6 {[%emt 0:05:04]} 20. Nxd6 {[%emt 0:01:05]} Qxd6 {[%emt 0:03:21]} 21. Rac1 {[%emt 0:00:35]} b5 {[%emt 0:05:51]} 22. axb5 {[%emt 0:00:26]} axb5 {[%emt 0:01:11]} 23. Qa3 {[%emt 0:00:16]} b4 {[%emt 0:00:57]} 24. Qa5 {[%emt 0:00:52]} Bf5 {[%emt 0:08:19]} 25. Rxc5 {[%emt 0:01:23]} Qb6 {[%emt 0:04:24]} 26. Qxb6 {[%emt 0:02:50]} Rxb6 {[%emt 0:02:22]} 27. g4 {[%emt 0:00:26]} Rc8 {[%emt 0:03:42]} 28. Rdc1 {[%emt 0:01:12]} Rxc5 {[%emt 0:00:28]} 29. Rxc5 {[%emt 0:00:09]} Bd7 {[%emt 0:01:32]} 30. b3 {[%emt 0:00:22]} h5 {[%emt 0:01:21]} 31. e4 {[%emt 0:08:37]} f5 {[%emt 0:01:01]} 32. gxf5 {[%emt 0:14:32]} gxf5 {[%emt 0:00:53]} 33. exf5 {[%emt 0:00:36]} Bxf5 {[%emt 0:00:30]} 34. Bxh5 {[%emt 0:00:56]} Bxh3 {[%emt 0:01:13]} 35. Ra5 {[%emt 0:03:54]} Rh6 {[%emt 0:01:53]} 36. Be8 {[%emt 0:00:22]} Kf8 {[%emt 0:00:22]} 37. Ra8 {[%emt 0:00:14]} Ke7 {[%emt 0:00:13]} 38. f4 {[%emt 0:00:34]} e4 {[%emt 0:01:27]} 39. Ra7+ {[%emt 0:00:23]} Kf8 {[%emt 0:01:46]} 40. Ra8 {[%emt 0:00:48]} Bd4+ {[%emt 0:00:34]} 41. Kh1 {[%emt 0:30:06]} Ke7 {[%emt 0:30:40]} 42. Bb5 {[%emt 0:00:00]} Rg6 {[%emt 0:00:00]} 43. d6+ {[%emt 0:00:00]} Rxd6 {[%emt 0:00:00]} 44. f5 {[%emt 0:00:00]} Rd5 {[%emt 0:00:00]} 45. Re8+ {[%emt 0:00:00]} Kf6 {[%emt 0:00:00]} 46. Rxe4 {[%emt 0:00:00]} Bxf5 {[%emt 0:00:00]} 47. Rh4 {[%emt 0:00:22]} Bf2 {[%emt 0:00:00]} 48. Rxb4 {[%emt 0:01:44]} Rxb5 {[%emt 0:00:07]} 49. Rf4 {[%emt 0:00:20]} Be3 {[%emt 0:00:47]} 50. Ra4 {[%emt 0:00:42]} Rxb3 {[%emt 0:01:09]} 51. Bc7 {[%emt 0:00:28]} Rb1+ {[%emt 0:01:45]} 52. Kg2 {[%emt 0:00:15]} Rb3 {[%emt 0:00:40]} 53. Bd6 {[%emt 0:02:07]} Ke6 {[%emt 0:00:48]} 54. Bf8 {[%emt 0:00:23]} Kd5 {[%emt 0:00:28]} 55. Ra3 {[%emt 0:00:37]} Be4+ {[%emt 0:00:44]} 56. Kf1 {[%emt 0:00:31]} Bd3+ {[%emt 0:00:52]} 57. Kg2 {[%emt 0:00:13]} Be4+ {[%emt 0:00:33]} 58. Kf1 {[%emt 0:00:11]} 1/2-1/2

[Event "22nd Ruzomberok Open 2019"]
[Site "Ruzomberok"]
[Date "2019.07.03"]
[Round "5.21"]
[White "Taragelova, Martina"]
[Black "Pecho, Juraj"]
[Result "1-0"]
[ECO "B07"]
[WhiteElo "1719"]
[BlackElo "1900"]
[Annotator "NA"]
[PlyCount "89"]
[EventDate "2019.06.29"]
[EventType "swiss"]
[EventCountry "SVK"]
[SourceTitle "playchess.com"]
[Source "ChessBase"]
[SourceQuality "1"]
[TimeControl "40/5400+30:1800+30"]

1. e4 {[%emt 0:00:00]} d6 {[%emt 0:00:00]} 2. d4 {[%emt 0:00:00]} Nf6 {[%emt 0:00:00]} 3. Nc3 {[%emt 0:00:12]} Nbd7 {[%emt 0:00:00]} 4. g4 {[%emt 0:01:53]} h6 {[%emt 0:00:00]} 5. h3 {[%emt 0:00:22]} e5 {[%emt 0:01:48]} 6. Bg2 {[%emt 0:01:01]} c6 {[%emt 0:00:34]} 7. Nge2 {[%emt 0:02:07]} Be7 {[%emt 0:06:22]} 8. Ng3 {[%emt 0:05:50]} g6 {[%emt 0:02:05]} 9. O-O {[%emt 0:04:10]} Qc7 {[%emt 0:00:20]} 10. Nce2 {[%emt 0:11:23]} b5 {[%emt 0:00:40]} 11. a4 {[%emt 0:02:01]} a6 {[%emt 0:01:28]} 12. f4 {[%emt 0:02:47]} h5 {[%emt 0:02:12]} 13. g5 {[%emt 0:01:41]} Nh7 {[%emt 0:00:13]} 14. h4 {[%emt 0:01:16]} exf4 {[%emt 0:03:51]} 15. Nxf4 {[%emt 0:04:17]} Bb7 {[%emt 0:01:16]} 16. axb5 {[%emt 0:07:52]} axb5 {[%emt 0:00:48]} 17. Rxa8+ {[%emt 0:00:37]} Bxa8 {[%emt 0:00:02]} 18. Qf3 {[%emt 0:06:31]} Bxg5 {[%emt 0:20:33]} 19. Nxg6 {[%emt 0:27:27]} fxg6 {[%emt 0:01:01]} 20. Qf7+ {[%emt 0:00:16]} Kd8 {[%emt 0:00:22]} 21. Bxg5+ {[%emt 0:02:41]} Nxg5 {[%emt 0:00:48]} 22. Qxg6 {[%emt 0:02:10]} Nh7 {[%emt 0:07:55]} 23. Qg7 {[%emt 0:00:37]} Rf8 {[%emt 0:00:50]} 24. Qxh7 {[%emt 0:00:59]} Rxf1+ {[%emt 0:05:27]} 25. Kxf1 {[%emt 0:01:49]} Nf8 {[%emt 0:11:32]} 26. Qxh5 {[%emt 0:02:13]} Qa7 {[%emt 0:05:11]} 27. Qg5+ {[%emt 0:06:47]} Ke8 {[%emt 0:06:44]} 28. Nf5 {[%emt 0:00:59]} Qc7 {[%emt 0:13:19]} 29. Qf6 {[%emt 0:01:45]} Qd8 {[%emt 0:03:52]} 30. Nxd6+ {[%emt 0:01:32]} Kd7 {[%emt 0:00:01]} 31. Qf7+ {[%emt 0:01:24]} Qe7 {[%emt 0:00:52]} 32. Qxe7+ {[%emt 0:00:15]} Kxe7 {[%emt 0:00:01]} 33. Nf5+ {[%emt 0:00:24]} Kf6 {[%emt 0:00:27]} 34. Kf2 {[%emt 0:00:31]} Bb7 {[%emt 0:00:12]} 35. Nd6 {[%emt 0:00:34]} Ba6 {[%emt 0:00:19]} 36. e5+ {[%emt 0:00:21]} Ke6 {[%emt 0:01:46]} 37. Bxc6 {[%emt 0:00:17]} b4 {[%emt 0:00:46]} 38. Bb5 {[%emt 0:01:03]} Bxb5 {[%emt 0:00:35]} 39. Nxb5 {[%emt 0:00:08]} Kd5 {[%emt 0:01:33]} 40. Ke3 {[%emt 0:00:44]} Ne6 {[%emt 0:01:31]} 41. c3 {[%emt 0:02:00]} bxc3 {[%emt 0:00:41]} 42. Nxc3+ {[%emt 0:02:39]} Kc4 {[%emt 0:00:39]} 43. d5 {[%emt 0:00:24]} Ng7 {[%emt 0:02:15]} 44. Kf4 {[%emt 0:01:11]} Kd4 {[%emt 0:00:13]} 45. d6 {[%emt 0:02:02] Kd5} 1-0

[Event "22nd Ruzomberok Open 2019"]
[Site "Ruzomberok"]
[Date "2019.07.03"]
[Round "5.22"]
[White "Horbal, Jozef"]
[Black "Karcol, Jan"]
[Result "1/2-1/2"]
[ECO "B08"]
[WhiteElo "1660"]
[BlackElo "1882"]
[Annotator "NA"]
[PlyCount "47"]
[EventDate "2019.06.29"]
[EventType "swiss"]
[EventCountry "SVK"]
[SourceTitle "playchess.com"]
[Source "ChessBase"]
[SourceQuality "1"]
[TimeControl "40/5400+30:1800+30"]

1. d4 {[%emt 0:00:00]} d6 {[%emt 0:00:00]} 2. e4 {[%emt 0:00:04]} Nf6 {[%emt 0:01:35]} 3. Nc3 {[%emt 0:01:06]} g6 {[%emt 0:00:33]} 4. h3 {[%emt 0:00:46]} Bg7 {[%emt 0:00:07]} 5. Nf3 {[%emt 0:00:19]} O-O {[%emt 0:00:22]} 6. Be3 {[%emt 0:00:25]} Nbd7 {[%emt 0:00:58]} 7. a4 {[%emt 0:00:43]} c6 {[%emt 0:01:38]} 8. Qd2 {[%emt 0:02:21]} Re8 {[%emt 0:02:27]} 9. Rd1 {[%emt 0:04:27]} Qa5 {[%emt 0:04:00]} 10. Be2 {[%emt 0:08:05]} b6 {[%emt 0:04:49]} 11. O-O {[%emt 0:03:42]} Ba6 {[%emt 0:00:09]} 12. Bxa6 {[%emt 0:03:01]} Qxa6 {[%emt 0:00:46]} 13. Rfe1 {[%emt 0:06:09]} Rad8 {[%emt 0:02:42]} 14. Nh2 {[%emt 0:14:14]} Qc8 {[%emt 0:12:06]} 15. f3 {[%emt 0:02:12]} h5 {[%emt 0:07:58]} 16. Qf2 {[%emt 0:03:15]} c5 {[%emt 0:09:35]} 17. f4 {[%emt 0:11:34]} cxd4 {[%emt 0:03:11]} 18. Bxd4 {[%emt 0:00:33]} e5 {[%emt 0:00:58]} 19. Be3 {[%emt 0:01:25]} exf4 {[%emt 0:11:26]} 20. Bxf4 {[%emt 0:00:57]} Ne5 {[%emt 0:00:03]} 21. Bg5 {[%emt 0:01:31]} Re6 {[%emt 0:11:05]} 22. Nd5 Qc5 23. Qxc5 bxc5 24. Nxf6+ {Bf8} 1/2-1/2

[Event "22nd Ruzomberok Open 2019"]
[Site "Ruzomberok"]
[Date "2019.07.03"]
[Round "5.23"]
[White "Marsina, Stefan"]
[Black "Galbavy, Dusan"]
[Result "1-0"]
[ECO "A90"]
[WhiteElo "1857"]
[BlackElo "1678"]
[Annotator "NA"]
[PlyCount "63"]
[EventDate "2019.06.29"]
[EventType "swiss"]
[EventCountry "SVK"]
[SourceTitle "playchess.com"]
[Source "ChessBase"]
[SourceQuality "1"]
[TimeControl "40/5400+30:1800+30"]

1. d4 {[%emt 0:00:00]} e6 {[%emt 0:04:37]} 2. c4 {[%emt 0:03:38]} f5 {[%emt 0:02:10]} 3. g3 {[%emt 0:00:28]} Nf6 {[%emt 0:00:26]} 4. Bg2 {[%emt 0:00:15]} d6 {[%emt 0:00:26]} 5. Nf3 {[%emt 0:03:52]} g6 {[%emt 0:00:37]} 6. Nc3 {[%emt 0:02:43]} Bg7 {[%emt 0:01:37]} 7. Bg5 {[%emt 0:02:25]} O-O {[%emt 0:00:51]} 8. e4 {[%emt 0:06:14]} fxe4 {[%emt 0:00:51]} 9. Nxe4 {[%emt 0:00:06]} Nbd7 {[%emt 0:02:07]} 10. O-O {[%emt 0:04:06]} Qe8 {[%emt 0:00:38]} 11. Nc3 {[%emt 0:05:15]} a6 {[%emt 0:05:14]} 12. Re1 {[%emt 0:06:01]} Qf7 {[%emt 0:05:24]} 13. Qd2 Nb6 {[%emt 0:04:42]} 14. b3 {[%emt 0:13:39]} Ng4 {[%emt 0:03:48]} 15. Bf4 {[%emt 0:06:33]} e5 {[%emt 0:06:03]} 16. dxe5 {[%emt 0:00:49]} dxe5 {[%emt 0:00:16]} 17. Nxe5 {[%emt 0:00:35]} Bxe5 {[%emt 0:17:18]} 18. Bxe5 {[%emt 0:00:36]} Nxf2 {[%emt 0:03:54]} 19. c5 {[%emt 0:01:32]} Bh3 {[%emt 0:04:28]} 20. Bf4 {[%emt 0:04:20]} Bxg2 {[%emt 0:01:04]} 21. Kxg2 {[%emt 0:00:52]} Nd7 {[%emt 0:06:28]} 22. Qxf2 {[%emt 0:03:11]} g5 {[%emt 0:00:45]} 23. Be3 {[%emt 0:01:33]} Qh5 {[%emt 0:02:42]} 24. Qe2 {[%emt 0:00:28]} g4 {[%emt 0:00:18]} 25. Qc4+ {[%emt 0:03:47]} Rf7 {[%emt 0:03:41]} 26. Bf4 {[%emt 0:01:01]} Kg7 {[%emt 0:08:12]} 27. Nd5 {[%emt 0:05:23]} c6 {[%emt 0:05:00]} 28. Qd4+ {[%emt 0:02:05]} Nf6 {[%emt 0:02:08]} 29. Nxf6 {[%emt 0:00:34]} Rxf6 {[%emt 0:00:16]} 30. Be5 {[%emt 0:00:36]} Raf8 {[%emt 0:00:19]} 31. Rf1 {[%emt 0:01:54]} Qh3+ {[%emt 0:00:20]} 32. Kg1 {[%emt 0:00:02]} 1-0

[Event "22nd Ruzomberok Open 2019"]
[Site "Ruzomberok"]
[Date "2019.07.03"]
[Round "5.25"]
[White "Cernekova, Martina"]
[Black "Tomanek, Rafael"]
[Result "0-1"]
[ECO "D59"]
[WhiteElo "1659"]
[BlackElo "1880"]
[Annotator "NA"]
[PlyCount "112"]
[EventDate "2019.06.29"]
[EventType "swiss"]
[EventCountry "SVK"]
[SourceTitle "playchess.com"]
[Source "ChessBase"]
[SourceQuality "1"]
[TimeControl "40/5400+30:1800+30"]

1. d4 {[%emt 0:00:00]} d5 {[%emt 0:00:00]} 2. c4 {[%emt 0:00:00]} e6 {[%emt 0:00:00]} 3. Nc3 {[%emt 0:00:00]} Nf6 {[%emt 0:00:00]} 4. Bg5 {[%emt 0:00:00]} Be7 {[%emt 0:00:03]} 5. e3 O-O {[%emt 0:00:45]} 6. Nf3 {[%emt 0:00:46]} h6 {[%emt 0:00:34]} 7. Bh4 {[%emt 0:00:21]} b6 {[%emt 0:01:55]} 8. cxd5 {[%emt 0:01:09]} Nxd5 {[%emt 0:00:53]} 9. Nxd5 {[%emt 0:02:13]} exd5 {[%emt 0:00:57]} 10. Bxe7 {[%emt 0:00:39]} Qxe7 {[%emt 0:00:04]} 11. Bd3 {[%emt 0:00:29]} Be6 {[%emt 0:03:45]} 12. O-O {[%emt 0:00:40]} c5 {[%emt 0:03:20]} 13. b3 {[%emt 0:00:49]} Nd7 {[%emt 0:07:03]} 14. Rc1 {[%emt 0:01:20]} Nf6 {[%emt 0:02:20]} 15. Ne5 {[%emt 0:01:00]} Rfc8 {[%emt 0:01:53]} 16. Ba6 {[%emt 0:01:28]} Rc7 {[%emt 0:00:46]} 17. f3 {[%emt 0:01:03]} Rd8 {[%emt 0:04:34]} 18. Bb5 {[%emt 0:01:53]} Bd7 {[%emt 0:07:28]} 19. Bxd7 {[%emt 0:00:44]} Nxd7 {[%emt 0:00:18]} 20. f4 {[%emt 0:01:56]} f6 {[%emt 0:04:18]} 21. Ng4 {[%emt 0:00:18]} c4 {[%emt 0:09:13]} 22. Rf3 {[%emt 0:00:46]} b5 {[%emt 0:03:25]} 23. Rg3 {[%emt 0:01:18]} Kf8 {[%emt 0:05:37]} 24. Qc2 {[%emt 0:01:05]} Qe4 {[%emt 0:04:18]} 25. Qxe4 {[%emt 0:00:25]} dxe4 {[%emt 0:00:16]} 26. b4 {[%emt 0:01:10]} Nb6 {[%emt 0:02:18]} 27. Nf2 {[%emt 0:00:40]} f5 {[%emt 0:02:29]} 28. Nd1 {[%emt 0:00:58]} Nd5 {[%emt 0:01:55]} 29. a3 {[%emt 0:00:21]} Kf7 {[%emt 0:04:20]} 30. Nc3 {[%emt 0:00:15]} Nxc3 {[%emt 0:01:12]} 31. Rxc3 {[%emt 0:00:05]} a5 {[%emt 0:00:55]} 32. bxa5 {[%emt 0:00:36]} Ra8 {[%emt 0:00:32]} 33. h4 {[%emt 0:00:34]} h5 {[%emt 0:03:00]} 34. Rh3 {[%emt 0:00:26]} Rxa5 {[%emt 0:03:34]} 35. Kf2 {[%emt 0:00:32]} Rca7 {[%emt 0:00:52]} 36. Rh1 {[%emt 0:00:28]} Rxa3 {[%emt 0:00:20]} 37. Rxa3 {[%emt 0:01:09]} Rxa3 {[%emt 0:00:03]} 38. Rb1 {[%emt 0:00:13]} Rb3 {[%emt 0:00:37]} 39. Ra1 {[%emt 0:00:27]} c3 {[%emt 0:02:25]} 40. Ra7+ {[%emt 0:00:32]} Ke6 {[%emt 0:02:05]} 41. Ke2 {[%emt 0:31:03]} Rb2+ {[%emt 0:32:18]} 42. Kd1 {[%emt 0:00:35]} Rxg2 {[%emt 0:12:56]} 43. Rb7 {[%emt 0:00:51]} Rb2 {[%emt 0:01:56]} 44. Rxg7 {[%emt 0:01:24]} b4 {[%emt 0:01:02]} 45. Rc7 {[%emt 0:01:01]} Rd2+ {[%emt 0:00:00]} 46. Kc1 {[%emt 0:00:00]} Rd3 {[%emt 0:00:00]} 47. Rb7 {[%emt 0:00:00]} Rxe3 {[%emt 0:00:00]} 48. Rxb4 {[%emt 0:00:00]} Rf3 {[%emt 0:00:00]} 49. Kc2 {[%emt 0:00:00]} Rxf4 {[%emt 0:00:00]} 50. Kxc3 {[%emt 0:00:00]} Rxh4 {[%emt 0:00:00]} 51. Rb6+ {[%emt 0:00:00]} Kf7 {[%emt 0:00:00]} 52. d5 {[%emt 0:00:00]} e3 {[%emt 0:00:00]} 53. Kd3 {[%emt 0:00:00]} Re4 {[%emt 0:00:00]} 54. Ke2 {[%emt 0:00:00]} f4 {[%emt 0:00:00]} 55. Rh6 {[%emt 0:00:00]} f3+ {[%emt 0:00:00]} 56. Ke1 {[%emt 0:00:00]} Rh4 {[%emt 0:00:00]} 0-1

[Event "22nd Ruzomberok Open 2019"]
[Site "Ruzomberok"]
[Date "2019.07.03"]
[Round "5.26"]
[White "Cabanova, Kristina"]
[Black "Mikulec, Martin"]
[Result "0-1"]
[ECO "A46"]
[WhiteElo "1728"]
[BlackElo "1875"]
[Annotator "NA"]
[PlyCount "120"]
[EventDate "2019.06.29"]
[EventType "swiss"]
[EventCountry "SVK"]
[SourceTitle "playchess.com"]
[Source "ChessBase"]
[SourceQuality "1"]
[TimeControl "40/5400+30:1800+30"]

1. d4 Nf6 2. Nf3 e6 3. Bf4 b6 4. e3 Bb7 5. Nbd2 c5 6. c3 Nc6 7. h3 Be7 8. Bd3 O-O 9. O-O d5 10. Re1 h6 11. Rc1 Rc8 12. Ne5 Nxe5 13. Bxe5 Ne8 14. Nf3 f6 15. Bh2 Bd6 16. Bc2 Bxh2+ 17. Nxh2 f5 18. Nf3 Nf6 19. Ne5 Nd7 20. Ng6 Rf6 21. Nf4 Qe8 22. Bb1 g5 23. Nd3 c4 24. Ne5 Nxe5 25. dxe5 Rf8 26. Bc2 Qf7 27. f4 Qg7 28. Qd2 Kh8 29. Bd1 Rg8 30. Rc2 Rcd8 31. Qd4 Qg6 32. Kf1 Rg7 33. Rf2 Rdg8 34. Ke2 gxf4 35. exf4 Qg3 36. Kd2 Qxf2+ 37. Qxf2 Rxg2 38. Qxg2 Rxg2+ 39. Re2 Rg3 40. Re3 Rg2+ 41. Re2 Rg8 42. Ba4 Rd8 43. Ke3 a6 44. Re1 b5 45. Bd1 Rg8 46. Kf2 d4 47. Rg1 Rd8 48. cxd4 Rxd4 49. Ke1 Re4+ 50. Kd2 Rxf4 51. Rg6 Bd5 52. Rxh6+ Kg7 53. Rh5 Rf2+ 54. Kc3 Bf3 55. Bxf3 Rxf3+ 56. Kd4 Rd3+ 57. Kc5 Rd5+ 58. Kb6 Rxe5 59. Rg5+ Kf6 60. Rg2 f4 0-1

[Event "22nd Ruzomberok Open 2019"]
[Site "Ruzomberok"]
[Date "2019.07.03"]
[Round "5.27"]
[White "Malinovsky, Jozef"]
[Black "Profant, Jan"]
[Result "0-1"]
[ECO "B27"]
[WhiteElo "1715"]
[BlackElo "1871"]
[Annotator "NA"]
[PlyCount "122"]
[EventDate "2019.06.29"]
[EventType "swiss"]
[EventCountry "SVK"]
[SourceTitle "playchess.com"]
[Source "ChessBase"]
[SourceQuality "1"]
[TimeControl "40/5400+30:1800+30"]

1. e4 {[%emt 0:00:00]} c5 {[%emt 0:00:00]} 2. Nf3 {[%emt 0:00:00]} g6 {[%emt 0:00:00]} 3. Nc3 {[%emt 0:01:03]} Bg7 {[%emt 0:00:17]} 4. d4 {[%emt 0:02:54]} cxd4 5. Nxd4 Nc6 {[%emt 0:00:49]} 6. Be3 {[%emt 0:01:31]} Nf6 {[%emt 0:00:08]} 7. f3 {[%emt 0:01:13]} h5 {[%emt 0:05:59]} 8. Qd2 {[%emt 0:01:11]} d6 {[%emt 0:03:10]} 9. O-O-O {[%emt 0:02:35]} Nxd4 {[%emt 0:00:27]} 10. Bxd4 {[%emt 0:00:50]} Bh6 {[%emt 0:01:04]} 11. Be3 {[%emt 0:01:22]} Bxe3 {[%emt 0:03:51]} 12. Qxe3 {[%emt 0:00:02]} Qa5 {[%emt 0:02:09]} 13. Bb5+ {[%emt 0:00:36]} Bd7 {[%emt 0:00:15]} 14. Bxd7+ {[%emt 0:00:28]} Nxd7 {[%emt 0:00:06]} 15. Rd5 {[%emt 0:00:26]} Qb6 {[%emt 0:00:33]} 16. Qe2 {[%emt 0:01:04]} Rc8 {[%emt 0:02:05]} 17. Rhd1 {[%emt 0:00:49]} Ne5 {[%emt 0:01:24]} 18. Qb5+ {[%emt 0:00:41]} Rc6 {[%emt 0:03:45]} 19. Qxb6 {[%emt 0:02:31]} Rxb6 {[%emt 0:02:49]} 20. Rb5 {[%emt 0:00:35]} Rxb5 {[%emt 0:04:12]} 21. Nxb5 {[%emt 0:00:09]} a6 {[%emt 0:00:04]} 22. Nc7+ {[%emt 0:01:31]} Kd7 {[%emt 0:00:11]} 23. Nd5 {[%emt 0:00:36]} e6 {[%emt 0:02:16]} 24. Nb4 {[%emt 0:03:33]} g5 {[%emt 0:00:19]} 25. Nd3 {[%emt 0:00:20]} Nc4 {[%emt 0:01:58]} 26. Re1 {[%emt 0:03:06]} Rc8 {[%emt 0:00:40]} 27. Re2 {[%emt 0:00:39]} b5 {[%emt 0:03:20]} 28. b3 {[%emt 0:01:28]} Nb6 {[%emt 0:01:43]} 29. Rd2 {[%emt 0:00:34]} a5 {[%emt 0:00:18]} 30. h3 {[%emt 0:02:41]} Ke7 {[%emt 0:00:20]} 31. Nf2 {[%emt 0:03:35]} d5 {[%emt 0:01:58]} 32. Rd4 {[%emt 0:01:55]} e5 {[%emt 0:00:53]} 33. Rd3 {[%emt 0:00:22]} d4 {[%emt 0:00:01]} 34. g3 {[%emt 0:01:26]} Nd7 {[%emt 0:02:21]} 35. Kb2 {[%emt 0:00:54]} Nc5 {[%emt 0:00:35]} 36. Rd2 {[%emt 0:00:23]} b4 {[%emt 0:01:38]} 37. a3 {[%emt 0:00:48]} Ke6 {[%emt 0:08:20]} 38. axb4 {[%emt 0:02:28]} axb4 {[%emt 0:00:03]} 39. Rd1 {[%emt 0:03:25]} Ra8 {[%emt 0:00:39]} 40. g4 {[%emt 0:03:57]} hxg4 {[%emt 0:03:00]} 41. hxg4 {[%emt 0:30:11]} Rh8 {[%emt 0:30:16]} 42. Rh1 {[%emt 0:00:06]} Rh4 {[%emt 0:00:40]} 43. Kc1 {[%emt 0:01:50]} Kd6 {[%emt 0:09:17]} 44. Kd1 {[%emt 0:00:49]} Ne6 {[%emt 0:00:42]} 45. Rxh4 {[%emt 0:03:03]} gxh4 {[%emt 0:00:07]} 46. Ke1 {[%emt 0:00:08]} Nf4 {[%emt 0:00:09]} 47. Kf1 {[%emt 0:00:10]} Ke6 {[%emt 0:03:11]} 48. Kg1 {[%emt 0:01:07]} Kf6 {[%emt 0:00:18]} 49. Kh2 {[%emt 0:00:20]} Kg5 {[%emt 0:00:45]} 50. Kh1 {[%emt 0:02:07]} h3 {[%emt 0:01:00]} 51. Kg1 {[%emt 0:01:45]} Kh4 {[%emt 0:00:15]} 52. Kh2 {[%emt 0:00:06]} f6 {[%emt 0:00:50]} 53. Nd3 {[%emt 0:01:25]} Nxd3 {[%emt 0:02:48]} 54. cxd3 {[%emt 0:01:42]} Kg5 {[%emt 0:00:03]} 55. Kxh3 {[%emt 0:00:55]} Kf4 {[%emt 0:00:01]} 56. Kg2 {[%emt 0:00:18]} Ke3 {[%emt 0:00:02]} 57. Kg3 {[%emt 0:00:20]} Kxd3 {[%emt 0:00:15]} 58. g5 {[%emt 0:00:31]} fxg5 {[%emt 0:00:22]} 59. Kg4 {[%emt 0:00:09]} Ke3 {[%emt 0:00:11]} 60. Kxg5 {[%emt 0:00:34]} d3 {[%emt 0:00:21]} 61. f4 {[%emt 0:00:23]} d2 {[%emt 0:00:11]} 0-1

[Event "22nd Ruzomberok Open 2019"]
[Site "Ruzomberok"]
[Date "2019.07.03"]
[Round "5.28"]
[White "Ucekajova, Veronika"]
[Black "Polko, Pavol"]
[Result "1-0"]
[ECO "B28"]
[WhiteElo "1836"]
[BlackElo "1638"]
[Annotator "NA"]
[PlyCount "71"]
[EventDate "2019.06.29"]
[EventType "swiss"]
[EventCountry "SVK"]
[SourceTitle "playchess.com"]
[Source "ChessBase"]
[SourceQuality "1"]
[TimeControl "40/5400+30:1800+30"]

1. e4 {[%emt 0:00:00]} c5 {[%emt 0:00:00]} 2. Nf3 {[%emt 0:00:00]} a6 {[%emt 0:00:00]} 3. c3 {[%emt 0:00:00]} e6 {[%emt 0:00:03]} 4. d4 {[%emt 0:00:04]} cxd4 {[%emt 0:00:08]} 5. cxd4 {[%emt 0:00:07]} Bb4+ {[%emt 0:00:18]} 6. Nc3 {[%emt 0:00:57]} h6 {[%emt 0:00:35]} 7. Bd3 {[%emt 0:07:03]} b5 {[%emt 0:01:23]} 8. O-O {[%emt 0:05:44]} Bxc3 {[%emt 0:00:08]} 9. bxc3 {[%emt 0:00:08]} Bb7 {[%emt 0:00:06]} 10. Re1 {[%emt 0:08:28]} d6 {[%emt 0:00:33]} 11. a4 {[%emt 0:04:55]} bxa4 {[%emt 0:03:16]} 12. Qxa4+ {[%emt 0:02:11]} Bc6 {[%emt 0:00:40]} 13. Qb3 {[%emt 0:01:09]} Ne7 {[%emt 0:00:31]} 14. d5 {[%emt 0:09:52]} exd5 {[%emt 0:00:46]} 15. exd5 {[%emt 0:00:07]} Bd7 {[%emt 0:00:16]} 16. Qb7 {[%emt 0:03:28]} O-O {[%emt 0:05:11]} 17. Qxa8 {[%emt 0:04:50]} Qc7 {[%emt 0:00:34]} 18. Bxa6 {[%emt 0:02:40]} Qxc3 {[%emt 0:00:15]} 19. Bd2 {[%emt 0:07:55]} Qf6 {[%emt 0:00:19]} 20. Qa7 {[%emt 0:18:54]} Nxd5 {[%emt 0:00:34]} 21. Bc4 {[%emt 0:00:52]} Bc6 {[%emt 0:01:11]} 22. Qd4 {[%emt 0:03:20]} Nd7 {[%emt 0:03:26]} 23. Bxd5 {[%emt 0:01:22]} Bxd5 {[%emt 0:00:02]} 24. Qxd5 {[%emt 0:00:08]} Rd8 {[%emt 0:01:06]} 25. Ra8 {[%emt 0:00:56]} Rxa8 {[%emt 0:01:29]} 26. Qxa8+ {[%emt 0:00:08]} Kh7 {[%emt 0:00:01]} 27. Qe4+ {[%emt 0:00:33]} g6 {[%emt 0:00:29]} 28. Qe7 {[%emt 0:00:40]} Qf5 {[%emt 0:00:22]} 29. Qxd6 {[%emt 0:00:28]} Nc5 {[%emt 0:00:42]} 30. Qf8 {[%emt 0:01:08]} Ne6 {[%emt 0:00:35]} 31. Qxh6+ {[%emt 0:00:17]} Kg8 32. Ra1 Qe4 {[%emt 0:07:22]} 33. Bc3 {[%emt 0:02:06]} f6 {[%emt 0:00:43]} 34. Bxf6 {[%emt 0:00:37]} Kf7 {[%emt 0:00:00]} 35. Qh8 {[%emt 0:01:01]} Qb7 {[%emt 0:01:06]} 36. Ne5# 1-0